bitfinex/quotes_BTCUSD_20241010
["timestamp","ask_amount","ask_price","bid_price","bid_amount"]
[1728594098563,0.167316,59767.0,59765.0,0.1763093]
[1728594098777,0.167316,59767.0,59766.0,0.001]
[1728594099416,0.168316,59767.0,59766.0,0.001]
[1728594099642,0.167316,59767.0,59766.0,0.001]
[1728594100069,0.168316,59767.0,59766.0,0.008]
[1728594100737,0.169316,59767.0,59766.0,0.013]
[1728594103083,0.168316,59767.0,59766.0,0.008]
[1728594103299,0.167316,59767.0,59766.0,0.008]
[1728594103513,0.168316,59767.0,59766.0,0.008]
[1728594103720,0.169316,59767.0,59766.0,0.018]
[1728594104896,0.168316,59767.0,59766.0,0.008]
[1728594105323,0.169316,59767.0,59766.0,0.015]
[1728594105531,0.169316,59767.0,59766.0,0.008]
[1728594105532,0.168316,59767.0,59766.0,0.008]
[1728594105739,0.168316,59767.0,59766.0,0.012]
[1728594105956,0.168316,59767.0,59766.0,0.011]
[1728594110570,0.263816,59767.0,59766.0,0.011]
[1728594111217,0.5376253,59767.0,59766.0,0.011]
[1728594111641,0.5376253,59767.0,59766.0,0.004]
[1728594111642,0.5366253,59767.0,59766.0,0.004]
[1728594111857,0.5366253,59767.0,59758.0,0.00163]
[1728594111858,0.167338,59759.0,59758.0,0.00163]
[1728594113546,0.170338,59759.0,59758.0,0.00163]
[1728594114854,0.167338,59759.0,59758.0,0.00163]
[1728594115095,0.168338,59759.0,59758.0,0.00163]
[1728594115307,0.172338,59759.0,59758.0,0.00163]
[1728594115550,0.171338,59759.0,59758.0,0.00163]
[1728594115763,0.170338,59759.0,59758.0,0.00163]
[1728594115980,0.175338,59759.0,59758.0,0.00163]
[1728594116238,0.256838,59759.0,59758.0,0.00163]
[1728594117122,0.45056838,59759.0,59758.0,0.00163]
[1728594117338,0.54066838,59759.0,59758.0,0.00163]
[1728594117826,0.56366838,59759.0,59758.0,0.00163]
[1728594118086,0.66766838,59759.0,59758.0,0.00163]
[1728594120690,0.473938,59759.0,59758.0,0.00163]
[1728594120898,0.469938,59759.0,59758.0,0.00163]
[1728594121104,0.473938,59759.0,59758.0,0.00163]
[1728594130460,0.60116674,59759.0,59758.0,0.00163]
[1728594133263,1.00116674,59759.0,59758.0,0.00163]
[1728594134317,0.60116674,59759.0,59758.0,0.00163]
[1728594138599,0.77047604,59759.0,59758.0,0.00163]
[1728594140681,0.198338,59759.0,59758.0,0.00163]
[1728594142818,0.198338,59759.0,59758.0,0.10103]
[1728594142819,0.175338,59759.0,59758.0,0.10103]
[1728594142999,0.172338,59759.0,59758.0,0.10103]
[1728594143612,0.167338,59759.0,59758.0,0.10103]
[1728594144093,0.170338,59759.0,59758.0,0.10103]
[1728594144504,0.169338,59759.0,59758.0,0.10103]
[1728594144956,0.168338,59759.0,59758.0,0.10703]
[1728594145369,0.169338,59759.0,59758.0,0.11503]
[1728594145591,0.167338,59759.0,59758.0,0.10103]
[1728594146008,0.168338,59759.0,59758.0,0.10903]
[1728594146260,0.168338,59759.0,59758.0,0.10103]
[1728594146482,0.167338,59759.0,59758.0,0.10103]
[1728594147002,0.168338,59759.0,59758.0,0.10703]
[1728594147446,0.167338,59759.0,59758.0,0.10103]
[1728594147643,0.169338,59759.0,59758.0,0.11503]
[1728594148089,0.168338,59759.0,59758.0,0.10903]
[1728594148509,0.168338,59759.0,59758.0,0.10703]
[1728594148712,0.169338,59759.0,59758.0,0.11503]
[1728594150421,0.002,59759.0,59758.0,0.78833778]
[1728594150621,0.002,59759.0,59758.0,0.88833778]
[1728594150845,0.002,59759.0,59758.0,1.01349106]
[1728594150999,0.002,59759.0,59758.0,2.26110904]
[1728594151202,0.002,59759.0,59758.0,2.51349106]
[1728594151404,0.167309,59770.0,59765.0,0.16732]
[1728594151631,0.167309,59770.0,59769.0,0.001]
[1728594152097,0.167299,59774.0,59773.0,0.001]
[1728594153365,0.167285,59778.0,59777.0,0.001]
[1728594155077,0.167306,59771.0,59770.0,0.001]
[1728594155294,0.001,59778.0,59774.0,0.001]
[1728594155295,0.167294,59775.0,59774.0,0.001]
[1728594156398,0.33455,59782.0,59774.0,0.001]
[1728594156644,0.167277,59781.0,59774.0,0.001]
[1728594156855,0.167266,59785.0,59781.0,0.001]
[1728594157077,0.167263,59786.0,59781.0,0.001]
[1728594157282,0.000815,59789.0,59784.0,0.001]
[1728594157490,0.000815,59789.0,59787.0,0.001]
[1728594159072,0.000815,59789.0,59787.0,0.003]
[1728594160914,0.000815,59789.0,59787.0,0.009692]
[1728594161351,0.000815,59789.0,59787.0,0.54324777]
[1728594161543,0.000815,59789.0,59787.0,0.53990291]
[1728594162394,0.000815,59789.0,59787.0,0.53790291]
[1728594162601,0.001815,59788.0,59787.0,0.56490291]
[1728594162998,0.001815,59788.0,59787.0,0.55090291]
[1728594163259,0.000815,59788.0,59787.0,0.53790291]
[1728594163451,0.001815,59788.0,59787.0,0.56590291]
[1728594163654,0.001815,59788.0,59787.0,0.3722613]
[1728594163995,0.000815,59788.0,59787.0,0.3582613]
[1728594164204,0.001815,59788.0,59787.0,0.3762613]
[1728594164395,0.001815,59788.0,59787.0,0.3712613]
[1728594164757,0.001815,59788.0,59787.0,0.3572613]
[1728594164918,0.001815,59788.0,59787.0,0.3712613]
[1728594165374,0.000815,59788.0,59787.0,0.3582613]
[1728594165780,0.001815,59788.0,59787.0,0.3722613]
[1728594166149,0.000815,59788.0,59787.0,0.3582613]
[1728594167207,0.001815,59788.0,59787.0,0.3712613]
[1728594168440,0.000815,59788.0,59787.0,0.3442613]
[1728594168673,0.001815,59788.0,59787.0,0.3582613]
[1728594168888,0.001815,59788.0,59787.0,0.3722613]
[1728594169094,0.001815,59788.0,59787.0,0.3442613]
[1728594169308,0.000815,59788.0,59787.0,0.3582613]
[1728594169848,0.000815,59788.0,59787.0,0.3442613]
[1728594170065,0.001815,59788.0,59787.0,0.3572613]
[1728594170266,0.001815,59788.0,59787.0,0.3728913]
[1728594171317,0.001815,59788.0,59787.0,0.3588913]
[1728594171903,0.000815,59788.0,59787.0,0.3598913]
[1728594173336,0.001815,59788.0,59787.0,0.3738913]
[1728594173715,0.000815,59788.0,59787.0,0.3598913]
[1728594174175,0.000815,59788.0,59787.0,0.022322]
[1728594174425,0.000815,59788.0,59787.0,0.023322]
[1728594175680,0.001815,59788.0,59787.0,0.035322]
[1728594177742,0.001815,59788.0,59787.0,0.034322]
[1728594177960,0.001815,59788.0,59787.0,0.02763]
[1728594178369,0.077015,59788.0,59787.0,0.02763]
[1728594178574,0.076015,59788.0,59787.0,0.00163]
[1728594178784,0.077015,59788.0,59787.0,0.01063]
[1728594179198,0.077015,59788.0,59787.0,0.02263]
[1728594179402,0.076015,59788.0,59787.0,0.00163]
[1728594179610,0.076015,59788.0,59787.0,0.00663]
[1728594179828,0.076015,59788.0,59787.0,0.01363]
[1728594180280,0.243272,59788.0,59787.0,0.01363]
[1728594181846,0.076015,59788.0,59787.0,0.01363]
[1728594183846,0.243272,59788.0,59787.0,0.01363]
[1728594184326,0.076015,59788.0,59787.0,0.01363]
[1728594186591,0.243272,59788.0,59787.0,0.01363]
[1728594186962,0.076015,59788.0,59787.0,0.01363]
[1728594187367,0.243272,59788.0,59787.0,0.01363]
[1728594187565,0.076015,59788.0,59787.0,0.01363]
[1728594189208,0.243272,59788.0,59787.0,0.01363]
[1728594192472,0.334672,59788.0,59787.0,0.01363]
[1728594192879,0.4617384,59788.0,59787.0,0.01363]
[1728594193215,0.4617384,59788.0,59787.0,0.00863]
[1728594193419,0.4847384,59788.0,59787.0,0.00663]
[1728594193622,0.7831141,59788.0,59787.0,0.00663]
[1728594193824,0.7811141,59788.0,59787.0,0.00763]
[1728594193982,0.8871141,59788.0,59787.0,0.00263]
[1728594194185,0.9380481,59788.0,59787.0,0.00263]
[1728594194433,0.9360481,59788.0,59787.0,0.00263]
[1728594194633,0.8851141,59788.0,59787.0,0.00263]
[1728594194837,0.93800755,59788.0,59787.0,0.00263]
[1728594195076,0.93800755,59788.0,59787.0,0.00163]
[1728594195263,1.33900755,59788.0,59787.0,0.00163]
[1728594195484,1.35836595,59788.0,59787.0,0.00263]
[1728594195700,1.35836595,59788.0,59787.0,0.00163]
[1728594195917,1.35936595,59788.0,59787.0,0.00163]
[1728594196082,1.36736595,59788.0,59787.0,0.00263]
[1728594196503,1.25607413,59788.0,59787.0,0.00263]
[1728594199816,2.50017413,59788.0,59787.0,0.00263]
[1728594206312,2.47481573,59788.0,59787.0,0.00263]
[1728594206539,2.47881573,59788.0,59787.0,0.00263]
[1728594206949,2.47881573,59788.0,59782.0,0.25144371]
[1728594206950,0.167271,59783.0,59782.0,0.24407371]
[1728594207378,0.167288,59777.0,59776.0,0.25144371]
[1728594207820,0.334545,59783.0,59772.0,0.258401]
[1728594208025,0.167291,59776.0,59772.0,0.258401]
[1728594209672,0.168291,59776.0,59772.0,0.281401]
[1728594210026,0.168291,59776.0,59772.0,0.1141]
[1728594210265,0.167294,59775.0,59772.0,0.1141]
[1728594211313,0.167294,59775.0,59772.0,0.1041]
[1728594211458,0.167294,59775.0,59772.0,0.0911]
[1728594211647,0.167294,59775.0,59772.0,0.1041]
[1728594212058,0.168294,59775.0,59772.0,0.1141]
[1728594213662,0.167299,59773.0,59772.0,0.023]
[1728594214125,0.5379083,59773.0,59772.0,0.023]
[1728594214332,0.5419083,59773.0,59772.0,0.023]
[1728594214540,0.5419083,59773.0,59772.0,0.01]
[1728594214755,0.5419083,59773.0,59772.0,0.013]
[1728594215235,0.167336,59760.0,59759.0,0.25244371]
[1728594215439,0.167336,59760.0,59759.0,0.25144371]
[1728594215905,0.167338,59759.0,59758.0,0.00163]
[1728594217389,0.4656473,59759.0,59758.0,0.00163]
[1728594217641,0.4636473,59759.0,59758.0,0.00163]
[1728594218139,0.4646473,59759.0,59758.0,0.00463]
[1728594218379,0.4646473,59759.0,59758.0,0.00163]
[1728594218614,0.4676473,59759.0,59758.0,0.00163]
[1728594218847,0.4766473,59759.0,59758.0,0.00263]
[1728594219100,0.4726473,59759.0,59758.0,0.00263]
[1728594219333,0.4766473,59759.0,59758.0,0.00363]
[1728594220342,0.4676473,59759.0,59758.0,0.00263]
[1728594220603,0.37407243,59759.0,59758.0,0.00363]
[1728594221665,0.36107243,59759.0,59758.0,0.00163]
[1728594221895,0.36307243,59759.0,59758.0,0.00163]
[1728594222626,0.36507243,59759.0,59758.0,0.00163]
[1728594223130,0.36307243,59759.0,59758.0,0.00163]
[1728594223602,0.36707243,59759.0,59758.0,0.00163]
[1728594226301,0.65938173,59759.0,59758.0,0.00163]
[1728594234500,1.01412443,59759.0,59758.0,0.00163]
[1728594235214,1.41212443,59759.0,59758.0,0.00163]
[1728594235692,1.24568173,59759.0,59758.0,0.00263]
[1728594236108,1.24168173,59759.0,59758.0,0.00263]
[1728594236935,1.24168173,59759.0,59739.0,0.25144371]
[1728594236936,0.270892,59740.0,59739.0,0.25144371]
[1728594237147,0.63593573,59740.0,59739.0,0.25144371]
[1728594237300,0.004,59733.0,59732.0,0.00173]
[1728594237508,0.4637203,59733.0,59732.0,0.00173]
[1728594237734,0.4657203,59733.0,59732.0,0.00173]
[1728594238152,0.4637203,59733.0,59732.0,0.00173]
[1728594239219,0.9442203,59733.0,59732.0,0.00173]
[1728594239850,0.9462203,59733.0,59732.0,0.00173]
[1728594240259,0.9542203,59733.0,59732.0,0.00273]
[1728594240461,0.9522203,59733.0,59732.0,0.00273]
[1728594240709,0.9542203,59733.0,59732.0,0.00273]
[1728594240937,0.9592203,59733.0,59732.0,0.00373]
[1728594241940,0.9572203,59733.0,59732.0,0.00373]
[1728594242220,0.9592203,59733.0,59732.0,0.00373]
[1728594242395,0.9572203,59733.0,59732.0,0.00373]
[1728594243392,1.01809269,59733.0,59732.0,0.00373]
[1728594243792,0.9592203,59733.0,59732.0,0.00373]
[1728594244148,2.2013203,59733.0,59732.0,0.00373]
[1728594248572,2.2033203,59733.0,59732.0,0.00373]
[1728594249602,2.2990203,59733.0,59732.0,0.00373]
[1728594249863,2.2990203,59733.0,59724.0,0.00163]
[1728594249864,0.74140286,59725.0,59724.0,0.00163]
[1728594250078,0.93571216,59725.0,59724.0,0.00163]
[1728594250295,0.74197773,59725.0,59724.0,0.00163]
[1728594251146,0.74897773,59725.0,59724.0,0.00263]
[1728594251362,1.14197773,59725.0,59724.0,0.00163]
[1728594251567,1.14197773,59725.0,59724.0,0.00263]
[1728594251775,1.14997773,59725.0,59724.0,0.00263]
[1728594252005,0.698434,59725.0,59724.0,0.00263]
[1728594252219,0.298434,59725.0,59724.0,0.00263]
[1728594252447,0.308434,59725.0,59724.0,0.00363]
[1728594254707,0.308434,59725.0,59724.0,0.00263]
[1728594254939,0.290434,59725.0,59724.0,0.00163]
[1728594255144,0.293434,59725.0,59724.0,0.00163]
[1728594255561,0.290434,59725.0,59724.0,0.00163]
[1728594256002,0.293434,59725.0,59724.0,0.00163]
[1728594257990,0.193434,59725.0,59724.0,0.00163]
[1728594258199,0.170434,59725.0,59724.0,0.00163]
[1728594260198,0.167434,59725.0,59724.0,0.00163]
[1728594261398,0.167434,59725.0,59724.0,0.00463]
[1728594262042,0.168434,59725.0,59724.0,0.00463]
[1728594262788,0.41987771,59725.0,59724.0,0.00163]
[1728594263030,0.4607433,59725.0,59724.0,0.00363]
[1728594263269,0.4607433,59725.0,59724.0,0.00163]
[1728594263270,0.4617433,59725.0,59724.0,0.00163]
[1728594263490,0.4617433,59725.0,59724.0,0.00263]
[1728594263491,0.4637433,59725.0,59724.0,0.00263]
[1728594264213,0.8617433,59725.0,59724.0,0.00263]
[1728594264457,1.05347773,59725.0,59724.0,0.00163]
[1728594264690,1.07147773,59725.0,59724.0,0.00363]
[1728594266078,1.07347773,59725.0,59724.0,0.00363]
[1728594266535,1.07147773,59725.0,59724.0,0.00363]
[1728594269612,1.07347773,59725.0,59724.0,0.00363]
[1728594270845,2.31757773,59725.0,59724.0,0.00363]
[1728594271257,2.31557773,59725.0,59724.0,0.00363]
[1728594271714,2.36852297,59725.0,59724.0,0.00363]
[1728594274467,2.38830871,59725.0,59724.0,0.00363]
[1728594278719,2.38630871,59725.0,59724.0,0.00363]
[1728594280905,2.73275141,59725.0,59724.0,0.00363]
[1728594281983,2.56330871,59725.0,59724.0,0.00363]
[1728594284825,2.17278854,59725.0,59724.0,0.00363]
[1728594285056,2.14978854,59725.0,59724.0,0.00363]
[1728594285334,1.74978854,59725.0,59724.0,0.00363]
[1728594286058,1.529534,59725.0,59724.0,0.00363]
[1728594286808,1.529534,59725.0,59724.0,0.00263]
[1728594287060,1.521534,59725.0,59724.0,0.00263]
[1728594287313,1.424534,59725.0,59724.0,0.08553]
[1728594287828,1.414534,59725.0,59724.0,0.08453]
[1728594288054,1.421534,59725.0,59724.0,0.08553]
[1728594288287,1.421534,59725.0,59724.0,0.00263]
[1728594288501,0.170434,59725.0,59724.0,0.00163]
[1728594288709,0.167434,59725.0,59724.0,0.00163]
[1728594288923,0.169434,59725.0,59724.0,0.00163]
[1728594289348,0.167434,59725.0,59724.0,0.00163]
[1728594289557,0.167434,59725.0,59724.0,0.00463]
[1728594289756,0.167434,59725.0,59724.0,0.00163]
[1728594290226,0.168434,59725.0,59724.0,0.00163]
[1728594291160,0.171434,59725.0,59724.0,0.00163]
[1728594293491,0.170434,59725.0,59724.0,0.00163]
[1728594293701,0.170434,59725.0,59724.0,0.00463]
[1728594294364,0.160434,59725.0,59724.0,0.00463]
[1728594294795,0.157434,59725.0,59724.0,0.00463]
[1728594295005,0.157434,59725.0,59724.0,0.00163]
[1728594295225,0.157434,59725.0,59724.0,0.00363]
[1728594295661,0.157434,59725.0,59724.0,0.00163]
[1728594295870,0.161434,59725.0,59724.0,0.00163]
[1728594297173,0.004,59725.0,59724.0,0.170066]
[1728594297393,0.004,59725.0,59724.0,0.247766]
[1728594298055,0.58710471,59730.0,59724.0,0.08033]
[1728594298267,0.167423,59729.0,59726.0,0.16743]
[1728594298483,0.167423,59729.0,59724.0,0.417198]
[1728594298484,0.167426,59728.0,59725.0,0.167433]
[1728594298744,0.167426,59728.0,59726.0,0.001]
[1728594299646,0.168426,59728.0,59726.0,0.001]
[1728594299852,0.167426,59728.0,59726.0,0.001]
[1728594300310,0.336661,59730.0,59725.0,0.167433]
[1728594300311,0.001816,59730.0,59729.0,0.001]
[1728594300504,0.001816,59730.0,59729.0,0.340422]
[1728594300955,0.000816,59730.0,59729.0,0.39056433]
[1728594301175,0.000816,59730.0,59729.0,0.340422]
[1728594302336,0.000816,59730.0,59729.0,0.348422]
[1728594302561,0.002816,59730.0,59729.0,1.854422]
[1728594302771,0.001816,59730.0,59729.0,2.0177313]
[1728594302996,0.001816,59730.0,59729.0,1.848422]
[1728594303211,0.002816,59730.0,59729.0,1.854422]
[1728594304777,0.002816,59730.0,59729.0,0.5237313]
[1728594305232,0.002816,59730.0,59729.0,0.57387308]
[1728594305627,0.002816,59730.0,59729.0,2.10404479]
[1728594305876,0.002816,59730.0,59729.0,2.0238313]
[1728594307011,0.001816,59730.0,59729.0,2.0178313]
[1728594307226,0.000816,59730.0,59729.0,2.0098313]
[1728594307689,0.000816,59730.0,59729.0,2.0238313]
[1728594308137,0.000816,59730.0,59729.0,2.0098313]
[1728594308356,0.000816,59730.0,59729.0,2.0208313]
[1728594308578,0.000816,59730.0,59729.0,2.0348313]
[1728594312379,0.000816,59730.0,59729.0,2.0398313]
[1728594314846,0.000816,59730.0,59729.0,2.1398313]
[1728594315290,0.000816,59730.0,59729.0,2.26671332]
[1728594315514,0.000816,59730.0,59729.0,2.1418313]
[1728594315731,0.000816,59730.0,59729.0,2.14766414]
[1728594315947,0.000816,59730.0,59729.0,2.14566414]
[1728594316175,0.000816,59730.0,59729.0,2.24854422]
[1728594316399,0.000816,59730.0,59729.0,2.13466414]
[1728594316619,0.000816,59730.0,59729.0,2.24854422]
[1728594317065,0.000816,59730.0,59729.0,2.23754512]
[1728594317278,0.000816,59730.0,59729.0,2.26254422]
[1728594317496,0.000816,59730.0,59729.0,2.15066414]
[1728594317728,0.000816,59730.0,59729.0,2.14866414]
[1728594317998,0.000816,59730.0,59729.0,2.26254422]
[1728594318232,0.000816,59730.0,59729.0,2.16266414]
[1728594318696,0.000816,59730.0,59729.0,2.2624502]
[1728594319103,0.000816,59730.0,59729.0,2.16266414]
[1728594319410,0.000816,59730.0,59729.0,2.28954616]
[1728594319691,0.000816,59730.0,59729.0,2.16466414]
[1728594319932,0.000816,59730.0,59729.0,2.66466414]
[1728594320447,0.000816,59730.0,59729.0,2.78954616]
[1728594320717,0.000816,59730.0,59729.0,3.00821014]
[1728594321082,0.000816,59738.0,59737.0,0.1734]
[1728594321241,0.000816,59738.0,59737.0,0.61255653]
[1728594321469,0.000816,59738.0,59737.0,0.70896401]
[1728594321928,0.000816,59738.0,59737.0,2.20896401]
[1728594322615,0.000816,59738.0,59737.0,2.22296401]
[1728594323055,0.000816,59738.0,59737.0,2.72296401]
[1728594323271,0.000816,59738.0,59737.0,2.73696401]
[1728594324144,0.000816,59738.0,59737.0,2.72296401]
[1728594325499,0.000816,59738.0,59737.0,2.73696401]
[1728594325962,0.000816,59738.0,59737.0,2.72296401]
[1728594326385,0.000816,59738.0,59737.0,2.6372093]
[1728594326617,0.000816,59738.0,59737.0,2.73692247]
[1728594327318,0.000816,59738.0,59737.0,2.72292247]
[1728594327536,0.000816,59738.0,59737.0,2.6232093]
[1728594327987,0.000816,59738.0,59737.0,2.6372093]
[1728594328429,0.000816,59738.0,59737.0,2.7120103]
[1728594328915,0.000816,59738.0,59737.0,2.6980103]
[1728594329333,0.000816,59738.0,59737.0,2.7120354]
[1728594329548,0.000816,59738.0,59737.0,2.6372093]
[1728594329762,0.000816,59738.0,59737.0,2.71202148]
[1728594330390,0.000816,59738.0,59737.0,2.73694397]
[1728594331626,0.000816,59738.0,59737.0,2.4707093]
[1728594332034,0.000816,59738.0,59737.0,2.4657093]
[1728594332256,0.000816,59738.0,59737.0,2.41558747]
[1728594332487,0.000816,59738.0,59737.0,2.3657093]
[1728594333062,0.000816,59738.0,59737.0,2.3517093]
[1728594333432,0.000816,59738.0,59737.0,2.3617093]
[1728594333633,0.000816,59738.0,59737.0,2.3477093]
[1728594333836,0.000816,59738.0,59737.0,2.3607093]
[1728594340377,0.000816,59738.0,59737.0,2.41060409]
[1728594342379,0.000816,59738.0,59737.0,2.43555148]
[1728594342590,0.000816,59738.0,59737.0,2.3607093]
[1728594343459,0.000816,59738.0,59737.0,2.43555148]
[1728594344318,0.000816,59738.0,59737.0,2.41069688]
[1728594344519,0.000816,59738.0,59737.0,2.3607093]
[1728594344741,0.000816,59738.0,59737.0,2.41070805]
[1728594344923,0.000816,59738.0,59737.0,2.3607093]
[1728594345476,0.000816,59738.0,59737.0,2.43555148]
[1728594345915,0.081716,59738.0,59737.0,0.524]
[1728594346345,0.08713329,59738.0,59737.0,0.524]
[1728594347234,0.08713329,59738.0,59737.0,0.501]
[1728594347430,0.08713329,59738.0,59737.0,0.512]
[1728594347859,0.08713329,59738.0,59737.0,0.501]
[1728594348311,0.08713329,59738.0,59737.0,0.505]
[1728594348549,0.08713329,59738.0,59737.0,0.518]
[1728594348757,0.08713329,59738.0,59737.0,0.505]
[1728594349178,0.08713329,59738.0,59737.0,0.511]
[1728594350217,0.08713329,59738.0,59737.0,0.507]
[1728594350423,0.08713329,59738.0,59737.0,0.503]
[1728594351063,0.08713329,59738.0,59737.0,0.501]
[1728594351271,0.08713329,59738.0,59737.0,0.503]
[1728594351947,0.25453029,59738.0,59737.0,0.502]
[1728594352128,0.25453029,59738.0,59737.0,0.505]
[1728594352354,0.25453029,59738.0,59737.0,0.5]
[1728594352764,0.25453029,59738.0,59737.0,0.506]
[1728594352978,0.25453029,59738.0,59737.0,0.501]
[1728594353189,0.25453029,59738.0,59737.0,0.006]
[1728594353407,0.25453029,59738.0,59737.0,0.008]
[1728594354051,0.25453029,59738.0,59737.0,0.006]
[1728594354466,0.25453029,59738.0,59737.0,0.008]
[1728594354679,0.25453029,59738.0,59737.0,0.007]
[1728594355120,0.25453029,59738.0,59737.0,0.005]
[1728594355333,0.25453029,59738.0,59737.0,0.007]
[1728594355551,0.25453029,59738.0,59737.0,0.002]
[1728594355998,0.25453029,59738.0,59737.0,0.007]
[1728594356234,0.25453029,59738.0,59737.0,0.002]
[1728594356441,0.25453029,59738.0,59737.0,0.007]
[1728594356659,0.25453029,59738.0,59737.0,0.005]
[1728594357124,0.25453029,59738.0,59737.0,0.007]
[1728594360378,0.00623329,59738.0,59737.0,0.1744]
[1728594360576,0.000816,59738.0,59737.0,0.34805712]
[1728594360754,0.000816,59738.0,59737.0,0.3447093]
[1728594360959,0.000816,59738.0,59737.0,1.91977121]
[1728594361646,0.000816,59738.0,59737.0,1.91277121]
[1728594361875,0.000816,59738.0,59737.0,1.92377121]
[1728594363019,0.000816,59738.0,59737.0,1.93677121]
[1728594363238,0.000816,59738.0,59737.0,1.91277121]
[1728594363704,0.000816,59738.0,59737.0,1.92277121]
[1728594364176,0.000816,59738.0,59737.0,1.93577121]
[1728594364579,0.000816,59738.0,59737.0,1.93578157]
[1728594364992,0.000816,59738.0,59737.0,0.43578157]
[1728594365408,0.000816,59738.0,59737.0,1.93578157]
[1728594368424,0.000816,59738.0,59737.0,1.8607093]
[1728594368864,0.000816,59738.0,59737.0,0.3607093]
[1728594369525,0.000816,59738.0,59737.0,0.46080567]
[1728594371463,0.000816,59738.0,59737.0,0.3607093]
[1728594372522,0.000816,59738.0,59737.0,0.48582976]
[1728594374336,0.000816,59738.0,59737.0,0.3607093]
[1728594374782,0.000816,59738.0,59737.0,0.4859513]
[1728594377113,0.000816,59738.0,59737.0,1.9859513]
[1728594377311,0.000816,59738.0,59737.0,1.8607093]
[1728594379206,0.000816,59738.0,59737.0,1.96094802]
[1728594379872,0.000816,59738.0,59737.0,1.8607093]
[1728594380094,0.000816,59738.0,59737.0,1.96094802]
[1728594382570,0.000816,59738.0,59737.0,1.98599407]
[1728594383016,0.000816,59738.0,59737.0,1.8607093]
[1728594384927,0.000816,59738.0,59737.0,1.9482093]
[1728594385142,0.000816,59738.0,59737.0,2.1453093]
[1728594386005,0.000816,59738.0,59737.0,2.1551718]
[1728594386230,0.000816,59738.0,59737.0,2.6551718]
[1728594386471,0.000816,59738.0,59737.0,2.89085523]
[1728594386695,0.000816,59738.0,59737.0,2.87785523]
[1728594387138,0.000816,59738.0,59737.0,2.6421718]
[1728594387352,0.000816,59738.0,59737.0,2.6561718]
[1728594387812,0.000816,59738.0,59737.0,2.6421718]
[1728594388039,0.000816,59738.0,59737.0,2.6701718]
[1728594388508,0.000816,59738.0,59737.0,2.6561718]
[1728594388752,0.000816,59738.0,59737.0,2.87774129]
[1728594388980,0.000816,59738.0,59737.0,2.89174129]
[1728594389221,0.000816,59738.0,59737.0,2.6701718]
[1728594396884,0.000816,59738.0,59737.0,0.8657093]
[1728594397107,0.00675547,59738.0,59737.0,0.94073581]
[1728594397324,0.000816,59738.0,59737.0,0.8657093]
[1728594397548,0.000816,59738.0,59737.0,0.91573196]
[1728594397754,0.000816,59738.0,59737.0,0.8377093]
[1728594397999,0.000816,59738.0,59737.0,0.8657093]
[1728594398425,0.168213,59738.0,59737.0,0.501]
[1728594398638,0.168213,59738.0,59737.0,0.511]
[1728594398639,0.248813,59738.0,59737.0,0.511]
[1728594398842,0.34625252,59738.0,59737.0,0.518]
[1728594399065,0.34625252,59738.0,59737.0,0.517]
[1728594402381,0.34625252,59738.0,59737.0,0.51]
[1728594402589,0.34725252,59738.0,59737.0,0.51]
[1728594402999,0.34725252,59738.0,59737.0,0.5]
[1728594403257,0.34725252,59738.0,59737.0,0.501]
[1728594407671,0.34725252,59738.0,59737.0,0.001]
[1728594419586,0.17985552,59738.0,59737.0,0.1684]
[1728594419816,0.00775552,59738.0,59737.0,0.1694]
[1728594420303,0.001816,59738.0,59737.0,1.8387093]
[1728594420553,0.00675121,59738.0,59737.0,1.8377093]
[1728594420770,0.000816,59738.0,59737.0,1.8427093]
[1728594421078,0.000816,59738.0,59737.0,1.8497093]
[1728594422006,0.000816,59738.0,59737.0,1.8447093]
[1728594422703,0.000816,59738.0,59737.0,1.9286093]
[1728594423193,0.000816,59738.0,59737.0,1.98358099]
[1728594423433,0.000816,59738.0,59737.0,1.9336093]
[1728594423678,0.000816,59738.0,59737.0,2.00156684]
[1728594423907,0.000816,59738.0,59737.0,1.99656684]
[1728594424129,0.000816,59738.0,59737.0,2.01056684]
[1728594424615,0.000816,59738.0,59737.0,1.9356093]
[1728594425376,0.000816,59738.0,59737.0,2.02056684]
[1728594425618,0.000816,59738.0,59737.0,1.9456093]
[1728594430518,0.000816,59738.0,59737.0,1.9406093]
[1728594430754,0.000816,59738.0,59737.0,1.9456093]
[1728594432234,0.000816,59738.0,59737.0,1.9316093]
[1728594432467,0.000816,59738.0,59737.0,1.9356093]
[1728594432705,0.000816,59738.0,59737.0,1.9466093]
[1728594432921,0.000816,59738.0,59737.0,1.9326093]
[1728594433121,0.000816,59738.0,59737.0,2.4356093]
[1728594433528,0.000816,59738.0,59737.0,2.52147738]
[1728594434748,0.000816,59738.0,59737.0,2.52150337]
[1728594435822,0.000816,59738.0,59737.0,2.44260337]
[1728594436513,0.000816,59738.0,59737.0,0.94260337]
[1728594436789,0.000816,59738.0,59737.0,0.91265179]
[1728594437016,0.000816,59738.0,59737.0,0.8627093]
[1728594437231,0.00644731,59738.0,59737.0,0.8627093]
[1728594437449,0.000816,59738.0,59737.0,0.8627093]
[1728594438338,0.000816,59738.0,59737.0,2.3627093]
[1728594442635,0.000816,59738.0,59737.0,2.41267496]
[1728594443291,0.000816,59738.0,59737.0,2.3627093]
[1728594445774,0.000816,59738.0,59737.0,2.41267496]
[1728594451812,0.000816,59738.0,59737.0,0.57496566]
[1728594451813,0.174716,59738.0,59737.0,0.57496566]
[1728594452062,0.342113,59738.0,59737.0,0.525]
[1728594452289,0.34746042,59738.0,59737.0,0.525]
[1728594452749,0.34746042,59738.0,59737.0,0.514]
[1728594452965,0.34746042,59738.0,59737.0,0.5]
[1728594453400,0.34746042,59738.0,59737.0,0.504]
[1728594454497,0.34746042,59738.0,59737.0,0.516]
[1728594454932,0.34746042,59738.0,59737.0,0.504]
[1728594455153,0.167414,59732.0,59731.0,0.25144371]